bitfinex-derivatives/quotes_BTCF0:USTF0_20241109
["timestamp","ask_amount","ask_price","bid_price","bid_amount"]
[1731130657270,0.164773,76473.0,76472.0,0.45735128]
[1731130658471,0.164253,76473.0,76472.0,0.45735128]
[1731130660375,0.164253,76473.0,76472.0,0.53560123]
[1731130660976,0.164253,76473.0,76472.0,0.36276122]
[1731130662282,0.164253,76473.0,76472.0,0.00196122]
[1731130662483,0.164253,76473.0,76472.0,0.36276122]
[1731130666488,0.164253,76473.0,76472.0,0.00196122]
[1731130666702,0.164253,76473.0,76472.0,0.36276122]
[1731130668185,0.164253,76473.0,76472.0,0.45750088]
[1731130669685,0.164253,76473.0,76472.0,0.09670088]
[1731130669885,0.164253,76473.0,76472.0,0.53575083]
[1731130670080,0.164253,76473.0,76472.0,0.45750088]
[1731130670386,0.164253,76473.0,76472.0,0.53575083]
[1731130670582,0.164253,76473.0,76472.0,0.45750088]
[1731130671090,0.164253,76473.0,76472.0,0.45752506]
[1731130671892,0.164253,76473.0,76472.0,0.53577501]
[1731130672092,0.164253,76473.0,76472.0,0.45752506]
[1731130673592,0.164253,76473.0,76472.0,0.4967551]
[1731130674791,0.164253,76473.0,76472.0,0.1359551]
[1731130675192,0.164253,76473.0,76472.0,0.4967551]
[1731130675589,0.164253,76473.0,76472.0,0.57500505]
[1731130675782,0.164253,76473.0,76472.0,0.57500072]
[1731130676284,0.164253,76473.0,76472.0,0.40199126]
[1731130679807,0.23703265,76473.0,76472.0,0.40199126]
[1731130680004,0.164253,76473.0,76472.0,0.40199126]
[1731130680301,0.23703265,76473.0,76472.0,0.40199126]
[1731130682101,0.23703265,76473.0,76472.0,0.4412213]
[1731130683201,0.23703265,76473.0,76472.0,0.53592889]
[1731130685005,0.23703265,76473.0,76472.0,0.17512889]
[1731130686092,0.23703265,76473.0,76472.0,0.28814691]
[1731130686495,0.23703265,76473.0,76472.0,0.17512889]
[1731130689010,0.23703265,76473.0,76472.0,0.28808765]
[1731130689307,0.23703265,76473.0,76472.0,0.17512889]
[1731130691104,0.23703265,76473.0,76472.0,0.0804213]
[1731130693303,0.23703265,76473.0,76472.0,0.4412213]
[1731130695307,0.23703265,76473.0,76472.0,0.0804213]
[1731130695508,0.23703265,76473.0,76472.0,0.4412213]
[1731130698312,0.23703265,76473.0,76472.0,0.53571932]
[1731130699613,0.23703265,76473.0,76472.0,0.5337581]
[1731130700007,0.23703265,76473.0,76472.0,0.5337521]
[1731130705314,0.13811265,76473.0,76472.0,0.5337521]
[1731130705516,0.13811265,76473.0,76472.0,0.43926008]
[1731130705517,0.23699265,76473.0,76472.0,0.43926008]
[1731130713416,0.23699265,76473.0,76472.0,0.53368724]
[1731130717726,0.23699265,76473.0,76472.0,0.64626236]
[1731130719616,0.23699265,76473.0,76472.0,0.53368724]
[1731130720621,0.23699265,76473.0,76472.0,0.61198203]
[1731130721626,0.23699265,76473.0,76472.0,0.53368724]
[1731130722226,0.23699265,76473.0,76472.0,0.61198203]
[1731130722726,0.23699265,76473.0,76472.0,0.61202217]
[1731130723023,0.23699265,76473.0,76472.0,0.53372367]
[1731130725020,0.23699265,76473.0,76472.0,0.64632259]
[1731130725227,0.23699265,76473.0,76472.0,0.53372367]
[1731130727021,0.164213,76473.0,76472.0,0.53372367]
[1731130727322,0.23699265,76473.0,76472.0,0.53372367]
[1731130727523,0.164173,76473.0,76472.0,0.53372367]
[1731130727723,0.23695265,76473.0,76472.0,0.53372367]
[1731130728218,0.13811265,76473.0,76472.0,0.53372367]
[1731130728539,0.0061,76477.0,76472.0,0.53372367]
[1731130728540,0.0061,76477.0,76472.0,0.43926008]
[1731130728829,0.0061,76477.0,76473.0,0.0317]
[1731130728830,0.065331,76476.0,76473.0,0.0317]
[1731130729427,0.0061,76477.0,76473.0,0.0317]
[1731130729630,0.065332,76475.0,76473.0,0.0317]
[1731130732218,0.065332,76475.0,76474.0,0.01634355]
[1731130732629,0.065332,76475.0,76473.0,0.0317]
[1731130732818,0.065332,76475.0,76474.0,0.01634348]
[1731130733928,0.065332,76475.0,76474.0,0.01634381]
[1731130735632,0.065332,76475.0,76474.0,0.11120836]
[1731130736738,0.13811165,76475.0,76474.0,0.11120836]
[1731130736932,0.13811165,76475.0,76474.0,0.18945055]
[1731130737135,0.13811165,76475.0,76474.0,0.24073804]
[1731130737330,0.13811165,76475.0,76474.0,0.16249585]
[1731130738831,0.13811165,76475.0,76474.0,0.24072829]
[1731130739031,0.13811165,76475.0,76474.0,0.24072751]
[1731130739332,0.13811165,76475.0,76474.0,0.16249585]
[1731130739534,0.065332,76475.0,76474.0,0.16249585]
[1731130739731,0.065332,76475.0,76474.0,0.24072508]
[1731130740039,0.065332,76475.0,76474.0,0.22782785]
[1731130740231,0.0061,76477.0,76474.0,0.2352755]
[1731130740432,0.0061,76477.0,76476.0,0.42613]
[1731130740628,0.17771965,76481.0,76476.0,0.5373413]
[1731130740830,0.06533,76477.0,76476.0,0.42613]
[1731130741129,0.06533,76477.0,76476.0,0.5208038]
[1731130741639,0.06533,76477.0,76476.0,0.59901224]
[1731130741938,0.06533,76477.0,76476.0,0.5208038]
[1731130745339,0.06533,76477.0,76476.0,0.63361063]
[1731130745535,0.17771965,76481.0,76476.0,0.63356378]
[1731130745739,0.065327,76480.0,76479.0,0.07819083]
[1731130745940,0.065327,76480.0,76479.0,0.17282468]
[1731130747534,0.065327,76480.0,76479.0,0.09463385]
[1731130747729,0.065327,76480.0,76479.0,0.17282468]
[1731130748126,0.065327,76480.0,76479.0,0.09463385]
[1731130748336,0.065327,76480.0,76479.0,0.17282468]
[1731130748536,0.065327,76480.0,76479.0,0.23815268]
[1731130748743,0.0061,76481.0,76480.0,0.065327]
[1731130748937,0.0061,76486.0,76485.0,0.065323]
[1731130749140,0.0988,76489.0,76485.0,0.52075685]
[1731130749332,0.065321,76487.0,76486.0,0.17277824]
[1731130750638,0.07277965,76488.0,76485.0,0.427083]
[1731130750639,0.065322,76486.0,76485.0,0.427083]
[1731130750848,0.065322,76486.0,76485.0,0.426123]
[1731130752745,0.13810165,76486.0,76485.0,0.426123]
[1731130753133,0.13810165,76486.0,76485.0,0.47799634]
[1731130753740,0.13810165,76486.0,76485.0,0.41267334]
[1731130754436,0.13810165,76486.0,76485.0,0.05187334]
[1731130754637,0.13810165,76486.0,76485.0,0.7216]
[1731130754844,0.065322,76486.0,76485.0,0.7216]
[1731130755039,0.13810165,76486.0,76485.0,0.7216]
[1731130756845,0.065322,76486.0,76485.0,0.7216]
[1731130757041,0.13810165,76486.0,76485.0,0.7216]
[1731130757345,0.2108813,76486.0,76485.0,0.7216]
[1731130757846,0.13810165,76486.0,76485.0,0.7216]
[1731130758552,0.13810165,76486.0,76485.0,0.81560124]
[1731130760338,0.13810165,76486.0,76485.0,0.89374563]
[1731130760542,0.13810165,76486.0,76485.0,0.81551595]
[1731130761341,0.13810165,76486.0,76485.0,0.09391595]
[1731130761537,0.13810165,76486.0,76485.0,0.45471595]
[1731130764655,0.13810165,76486.0,76485.0,0.45474369]
[1731130765543,0.13810165,76486.0,76485.0,0.3608]
[1731130771662,0.065322,76486.0,76485.0,0.3608]
[1731130773759,0.065322,76486.0,76485.0,0.52006832]
[1731130774057,0.065322,76486.0,76485.0,0.42591888]
[1731130774252,0.065322,76486.0,76485.0,0.52007836]
[1731130775159,0.065322,76486.0,76485.0,0.45495948]
[1731130778062,0.065322,76486.0,76485.0,0.55088248]
[1731130780759,0.065322,76486.0,76485.0,0.456723]
[1731130784062,0.0061,76491.0,76485.0,0.3914]
[1731130784255,0.0061,76491.0,76488.0,0.06532]
[1731130784459,0.065319,76490.0,76489.0,0.0331]
[1731130787068,0.071415,76495.0,76494.0,0.065315]
[1731130787369,0.065315,76495.0,76494.0,0.426115]
[1731130787766,0.065311,76499.0,76497.0,0.065312]
[1731130787968,0.065312,76498.0,76497.0,0.065312]
[1731130788869,0.065312,76498.0,76497.0,0.13809165]
[1731130789463,0.065312,76498.0,76497.0,0.065312]
[1731130797571,0.06731806,76500.0,76497.0,0.07277965]
[1731130797772,0.06731806,76500.0,76499.0,0.426111]
[1731130798672,0.13262806,76500.0,76499.0,0.426111]
[1731130798875,0.06731806,76500.0,76499.0,0.426111]
[1731130802265,0.20540771,76500.0,76499.0,0.3608]
[1731130803676,0.13262806,76500.0,76499.0,0.3608]
[1731130804976,0.13262806,76500.0,76499.0,0.426111]
[1731130808372,0.06731806,76500.0,76499.0,0.426111]
[1731130809787,0.20540771,76500.0,76499.0,0.3608]
[1731130809976,0.20540771,76500.0,76499.0,0.41283569]
[1731130810175,0.20540771,76500.0,76499.0,0.3608]
[1731130810585,0.06731806,76500.0,76499.0,0.3608]
[1731130813979,0.0673625,76500.0,76499.0,0.42600287]
[1731130814182,0.0673625,76500.0,76499.0,0.5201207]
[1731130814672,0.0673625,76500.0,76499.0,0.45491783]
[1731130816693,0.14381466,76571.0,76529.0,0.065285]
[1731130816887,0.00068,76565.0,76562.0,0.3608]
[1731130817084,0.07205115,76570.0,76562.0,0.3608]
[1731130817085,0.065256,76563.0,76562.0,0.3608]
[1731130817280,0.0636,76572.0,76562.0,0.3608]
[1731130817581,0.227569,76572.0,76571.0,0.3608]
[1731130818484,0.00195949,76581.0,76571.0,0.43357965]
[1731130818686,0.00195949,76581.0,76549.0,0.05207953]
[1731130818687,0.0307,76593.0,76580.0,0.7216]
[1731130818888,0.07277965,76592.0,76588.0,0.3608]
[1731130819191,0.07277965,76590.0,76588.0,0.3608]
[1731130819485,0.03195288,76591.0,76588.0,0.3608]
[1731130820789,0.11296307,76589.0,76588.0,0.3608]
[1731130821381,0.03195288,76591.0,76588.0,0.3608]
[1731130821694,0.14491595,76591.0,76588.0,0.3608]
[1731130822082,0.14516,76590.0,76588.0,0.3608]
[1731130822680,0.14491595,76591.0,76588.0,0.3608]
[1731130822681,0.14512,76589.0,76588.0,0.3608]
[1731130823488,0.25808307,76589.0,76588.0,0.3608]
[1731130823682,0.32331707,76589.0,76588.0,0.3608]
[1731130825180,0.71503707,76589.0,76588.0,0.3608]
[1731130825488,0.065241,76581.0,76580.0,0.3608]
[1731130825792,0.17820407,76581.0,76580.0,0.3608]
[1731130827084,0.32328407,76581.0,76580.0,0.3608]
[1731130827491,0.210321,76581.0,76580.0,0.3608]
[1731130831093,0.065241,76581.0,76580.0,0.3608]
[1731130831294,0.210321,76581.0,76580.0,0.3608]
[1731130836899,0.065241,76581.0,76580.0,0.3608]
[1731130837100,0.210321,76581.0,76580.0,0.3608]
[1731130841297,0.28285809,76581.0,76580.0,0.3608]
[1731130841598,0.14381466,76665.0,76599.0,0.3608]
[1731130841796,0.14381466,76665.0,76582.0,0.06524]
[1731130841797,0.065186,76646.0,76644.0,0.242287]
[1731130842001,0.065186,76646.0,76635.0,0.3608]
[1731130842002,0.3914,76645.0,76635.0,0.3608]
[1731130842198,0.065203,76625.0,76624.0,0.3608]
[1731130842504,0.21027718,76625.0,76624.0,0.3608]
[1731130842697,0.065204,76624.0,76622.0,0.3608]
[1731130842894,0.07253709,76623.0,76622.0,0.3608]
[1731130843097,0.29011418,76623.0,76613.0,0.3608]
[1731130843311,0.065212,76615.0,76613.0,0.3608]
[1731130843604,0.22589708,76614.0,76613.0,0.3608]
[1731130843806,0.11294854,76614.0,76613.0,0.3608]
[1731130844701,0.0737953,76614.0,76613.0,0.3608]
[1731130846104,0.14504,76614.0,76613.0,0.3608]
[1731130851004,0.065212,76615.0,76613.0,0.3608]
[1731130851209,0.208613,76614.0,76613.0,0.3608]
[1731130857206,0.208613,76614.0,76603.0,0.3608]
[1731130857207,0.065213,76614.0,76603.0,0.3608]
[1731130857408,0.11294854,76608.0,76604.0,0.0061]
[1731130857600,0.0307,76607.0,76604.0,0.0061]
[1731130860213,0.11294854,76606.0,76604.0,0.0061]
[1731130861517,0.06522,76605.0,76604.0,0.0061]
[1731130861711,0.06522,76605.0,76603.0,0.3608]
[1731130861913,0.16056,76604.0,76603.0,0.3608]
[1731130863216,0.06522,76605.0,76603.0,0.3109]
[1731130863813,0.06522,76605.0,76604.0,0.023266]
[1731130864217,0.06522,76605.0,76604.0,0.02326941]
[1731130865015,0.06522,76605.0,76604.0,0.00894931]
[1731130865208,0.06522,76605.0,76604.0,0.02318824]
[1731130865911,0.06522,76605.0,76603.0,0.3109]
[1731130866219,0.11294854,76604.0,76603.0,0.3109]
[1731130868413,0.065222,76603.0,76601.0,0.0061]
[1731130869824,0.0305,76608.0,76601.0,0.0061]
[1731130870036,0.0653,76613.0,76607.0,0.3608]
[1731130870219,0.0653,76613.0,76609.0,0.3608]
[1731130870524,0.0653,76613.0,76609.0,0.39980104]
[1731130870525,0.0332,76613.0,76609.0,0.39980104]
[1731130870733,0.065211,76617.0,76610.0,0.03900104]
[1731130871022,0.065211,76617.0,76616.0,0.3608]
[1731130871222,0.251931,76617.0,76616.0,0.36996797]
[1731130871931,0.251931,76617.0,76616.0,0.384874]
[1731130872622,0.11294854,76618.0,76616.0,0.384874]
[1731130872817,0.11294854,76618.0,76616.0,0.3608]
[1731130872818,0.18672,76617.0,76616.0,0.3608]
[1731130873024,0.18672,76617.0,76616.0,0.38501493]
[1731130873214,0.18672,76617.0,76616.0,0.37011295]
[1731130873625,0.11294854,76618.0,76616.0,0.37011295]
[1731130873927,0.18672,76617.0,76616.0,0.3608]
[1731130874518,0.0936,76624.0,76616.0,0.3608]
[1731130874519,0.14577286,76639.0,76616.0,0.36982185]
[1731130874729,0.14577286,76639.0,76635.0,0.3608]
[1731130874730,0.09493734,76638.0,76635.0,0.3608]
[1731130875035,0.03193734,76637.0,76636.0,0.02518034]
[1731130875222,0.19808,76637.0,76636.0,0.00968438]
[1731130875417,0.19808,76637.0,76634.0,0.0061]
[1731130875418,0.3429618,76637.0,76634.0,0.0061]
[1731130875726,0.11294854,76636.0,76635.0,0.00967889]
[1731130876127,0.11294854,76636.0,76634.0,0.0061]
[1731130877435,0.19808,76637.0,76634.0,0.0061]
[1731130877733,0.03193484,76636.0,76634.0,0.0061]
[1731130877931,0.19808,76637.0,76634.0,0.0061]
[1731130878924,0.11294854,76636.0,76634.0,0.0061]
[1731130879126,0.11294854,76636.0,76628.0,0.3608]
[1731130879127,0.55884,76635.0,76628.0,0.3608]
[1731130879333,0.11294854,76629.0,76628.0,0.3608]
[1731130879723,0.11294854,76629.0,76628.0,0.37009199]
[1731130879923,0.11294854,76629.0,76628.0,0.3608]
[1731130881830,0.19804,76635.0,76628.0,0.3608]
[1731130882529,0.11294854,76636.0,76628.0,0.3608]
[1731130882731,0.063,76638.0,76635.0,0.3608]
[1731130883030,0.19804,76637.0,76635.0,0.3608]
[1731130883732,0.11294854,76636.0,76635.0,0.3608]
[1731130884137,0.31098854,76636.0,76635.0,0.3608]
[1731130884429,0.11294854,76636.0,76635.0,0.3608]
[1731130885833,0.19804,76637.0,76635.0,0.425994]
[1731130888239,0.31098854,76642.0,76635.0,0.425994]
[1731130889337,0.11294854,76642.0,76635.0,0.425994]
[1731130889530,0.11294854,76642.0,76636.0,0.065194]
[1731130890230,0.0655,76651.0,76638.0,0.3608]
[1731130890426,0.03001462,76669.0,76650.0,0.47374854]
[1731130890427,0.0322,76661.0,76650.0,0.47374854]
[1731130890631,0.0499,76660.0,76651.0,0.425981]
[1731130890930,0.0499,76660.0,76659.0,0.3608]
[1731130891130,0.0813,76667.0,76659.0,0.3608]
[1731130891330,0.11294854,76661.0,76659.0,0.3608]
[1731130892140,0.11294854,76660.0,76659.0,0.3608]
[1731130893041,0.32790854,76660.0,76659.0,0.3608]
[1731130893445,0.44085708,76660.0,76651.0,0.3608]
[1731130893630,0.11294854,76652.0,76651.0,0.3608]
[1731130898939,0.17812854,76652.0,76651.0,0.3608]
[1731130899547,0.42497712,76652.0,76651.0,0.3608]
[1731130899746,0.39304854,76652.0,76651.0,0.3608]
[1731130901040,0.42497747,76652.0,76651.0,0.3608]
[1731130901357,0.065183,76649.0,76648.0,0.0061]
[1731130902644,0.280103,76649.0,76648.0,0.0061]
[1731130903250,0.065183,76649.0,76648.0,0.0061]
[1731130903551,0.280103,76649.0,76648.0,0.0061]
[1731130908141,0.21492,76649.0,76648.0,0.3669]
[1731130909752,0.0332,76651.0,76648.0,0.3669]
[1731130909753,0.21492,76650.0,76648.0,0.3669]
[1731130910753,0.280102,76650.0,76648.0,0.3669]
[1731130911553,0.065182,76650.0,76648.0,0.3669]
[1731130913662,0.280102,76650.0,76648.0,0.3669]
[1731130914053,0.065182,76650.0,76648.0,0.3669]
[1731130914360,0.21492,76649.0,76648.0,0.3669]
[1731130914664,0.24684728,76649.0,76648.0,0.3669]
[1731130916365,0.21492,76649.0,76648.0,0.3669]
[1731130922070,0.273457,76656.0,76649.0,0.065182]
[1731130922283,0.273457,76656.0,76649.0,0.10418304]
[1731130922469,0.20828,76656.0,76649.0,0.03900104]
[1731130922774,0.115075,76658.0,76650.0,0.065182]
[1731130923074,0.323355,76658.0,76651.0,0.0641]
[1731130923268,0.07194048,76657.0,76651.0,0.0641]
[1731130923472,0.323355,76658.0,76651.0,0.0641]
[1731130923473,0.07194048,76656.0,76651.0,0.0641]
[1731130923668,0.323355,76658.0,76655.0,0.3608]
[1731130923873,0.03192447,76657.0,76655.0,0.3608]
[1731130924071,0.03192447,76656.0,76655.0,0.3608]
[1731130925074,0.03192408,76656.0,76655.0,0.3608]
[1731130926874,0.07194015,76656.0,76655.0,0.3608]
[1731130927077,0.18488869,76656.0,76655.0,0.3608]
[1731130928482,0.18488912,76656.0,76655.0,0.3608]
[1731130930479,0.07194058,76656.0,76655.0,0.3608]
[1731130930781,0.03192408,76656.0,76655.0,0.3608]
[1731130931270,0.065177,76657.0,76655.0,0.3608]
[1731130932385,0.20828,76656.0,76655.0,0.3608]
[1731130932775,0.065177,76657.0,76655.0,0.3608]
[1731130933084,0.20828,76656.0,76655.0,0.3608]
[1731130934983,0.273457,76656.0,76655.0,0.3608]
[1731130944191,0.065177,76656.0,76655.0,0.3608]
[1731130945995,0.0499,76658.0,76655.0,0.3608]
[1731130946198,0.031924,76657.0,76655.0,0.3608]
[1731130946387,0.031924,76656.0,76655.0,0.3608]
[1731130946905,0.03192366,76656.0,76655.0,0.3608]
[1731130947195,0.03192366,76656.0,76655.0,0.3699395]
[1731130947383,0.03192366,76656.0,76655.0,0.3608]
[1731130947786,0.0499,76658.0,76655.0,0.3608]
[1731130947987,0.0499,76658.0,76656.0,0.00907193]
[1731130948287,0.0499,76658.0,76655.0,0.3608]
[1731130949289,0.07241184,76656.0,76655.0,0.3608]
[1731130950094,0.10433584,76656.0,76655.0,0.3608]
[1731130950987,0.07241184,76656.0,76655.0,0.3608]
[1731130953700,0.07241184,76656.0,76655.0,0.39965921]
[1731130953898,0.07241184,76656.0,76655.0,0.3608]
[1731130955098,0.2495,76658.0,76655.0,0.3608]
[1731130955099,0.0499,76658.0,76655.0,0.3608]
[1731130956094,0.18748684,76659.0,76655.0,0.3608]
[1731130956296,0.12231184,76659.0,76655.0,0.3608]
[1731130956800,0.0499,76659.0,76655.0,0.3608]
[1731130957000,0.12231184,76659.0,76655.0,0.3608]
[1731130959396,0.065177,76656.0,76655.0,0.3608]
[1731130960900,0.09710179,76656.0,76655.0,0.3608]
[1731130961101,0.065177,76656.0,76655.0,0.3608]
[1731130963704,0.13758884,76656.0,76655.0,0.3608]
[1731130964695,0.16951358,76656.0,76655.0,0.3608]
[1731130966298,0.0499,76659.0,76655.0,0.82457184]
[1731130966496,0.0061,76668.0,76667.0,0.07241184]
[1731130966703,0.07241184,76676.0,76667.0,0.3695832]
[1731130967005,0.0301,76677.0,76674.0,0.3608]
[1731130967006,0.03191791,76675.0,76674.0,0.3608]
[1731130967199,0.03191791,76675.0,76674.0,0.3695832]
[1731130967511,0.0061,76684.0,76674.0,1.05698]
[1731130967700,0.065139,76701.0,76683.0,0.47350775]
[1731130967701,0.0061,76688.0,76683.0,0.47350775]
[1731130968010,0.0061,76697.0,76684.0,0.02612842]
[1731130968196,0.3608,76692.0,76689.0,0.0061]
[1731130968401,0.11270775,76690.0,76689.0,0.0061]
[1731130968597,0.11270775,76690.0,76689.0,0.01654504]
[1731130969006,0.35710775,76690.0,76689.0,0.01654504]
[1731130969610,0.3608,76692.0,76689.0,0.01654504]
[1731130969808,0.11270775,76691.0,76690.0,0.01044504]
[1731130971314,0.3608,76692.0,76689.0,0.0061]
[1731130971497,0.47350775,76692.0,76689.0,0.0061]
[1731130972414,0.24436,76693.0,76691.0,0.3608]
[1731130972610,0.24432,76693.0,76691.0,0.3608]
[1731130973112,0.24432,76693.0,76692.0,0.01051443]
[1731130974207,0.24432,76693.0,76692.0,0.02101651]
[1731130975212,0.309466,76693.0,76692.0,0.02101651]
[1731130975907,0.42217375,76693.0,76692.0,0.02101651]
[1731130981209,0.35702775,76693.0,76692.0,0.02101651]
[1731130984416,0.35702775,76693.0,76689.0,0.0061]
[1731130984621,0.11270775,76693.0,76689.0,0.0061]
[1731130984914,0.23544,76692.0,76689.0,0.0061]
[1731130985519,0.0317,76691.0,76689.0,0.0061]
[1731130986919,0.23544,76692.0,76689.0,0.0061]
[1731130987310,0.3608,76695.0,76689.0,0.0061]
[1731130987514,0.0319123,76694.0,76689.0,0.0061]
[1731130987714,0.26735214,76693.0,76689.0,0.0061]
[1731130988018,0.23544,76693.0,76689.0,0.0061]
[1731130990326,0.300593,76693.0,76689.0,0.0061]
[1731130990517,0.065154,76691.0,76689.0,0.0061]
[1731130990918,0.3608,76690.0,76689.0,0.0061]
[1731130991322,0.3608,76690.0,76686.0,0.0061]
[1731130991323,0.065157,76687.0,76686.0,0.0061]
[1731130991624,0.065161,76683.0,76681.0,0.0061]
[1731130991825,0.4245,76689.0,76680.0,0.0061]
[1731130991826,0.56996975,76682.0,76680.0,0.0061]
[1731130992130,0.56996975,76682.0,76679.0,0.0061]
[1731130992426,0.56996975,76682.0,76675.0,0.0061]
[1731130992622,0.56996975,76682.0,76673.0,0.0061]
[1731130992822,0.56996975,76682.0,76669.0,0.0061]
[1731130993520,0.065165,76679.0,76669.0,0.0061]
[1731130994518,0.0324,76681.0,76669.0,0.0061]
[1731130994730,0.0324,76681.0,76669.0,0.071272]
[1731130995119,0.3608,76682.0,76670.0,0.00977824]
[1731130995315,0.3608,76682.0,76669.0,0.071272]
[1731130995522,0.3608,76682.0,76670.0,0.00977808]
[1731130995720,0.3608,76682.0,76669.0,0.071272]
[1731130995921,0.3608,76682.0,76670.0,0.00977807]
[1731130996222,0.425962,76682.0,76671.0,0.00972707]
[1731130996423,0.425962,76682.0,76669.0,0.0061]
[1731130996625,0.065166,76677.0,76670.0,0.00972636]
[1731130996834,0.17787475,76676.0,76671.0,0.00972636]
[1731130997027,0.17787475,76676.0,76669.0,0.0061]
[1731130997327,0.3608,76682.0,76670.0,0.00965287]
[1731130997328,0.3608,76671.0,76670.0,0.00965287]
[1731130997527,0.3608,76671.0,76669.0,0.0061]
[1731130997724,0.3927,76671.0,76665.0,0.0061]
[1731130997920,0.457871,76671.0,76666.0,0.00965322]
[1731130998224,0.457871,76671.0,76665.0,0.0061]
[1731130999131,0.3927,76671.0,76665.0,0.0061]
[1731131000330,0.065175,76666.0,76665.0,0.0061]
[1731131000526,0.065177,76664.0,76661.0,0.3608]
[1731131000831,0.3608,76664.0,76660.0,0.0061]
[1731131001921,0.065175,76667.0,76660.0,0.0061]
[1731131003129,0.3608,76668.0,76660.0,0.0061]
[1731131003329,0.065178,76663.0,76660.0,0.0061]
[1731131003521,0.065178,76663.0,76658.0,0.00195618]
[1731131004631,0.06518,76660.0,76658.0,0.00195618]
[1731131005627,0.09598,76660.0,76658.0,0.00195618]
[1731131005828,0.06518,76660.0,76658.0,0.00195618]
[1731131006136,0.3608,76661.0,76658.0,0.00195618]
[1731131006437,0.06518,76660.0,76658.0,0.00195618]
[1731131007226,0.23548,76659.0,76658.0,0.00195618]
[1731131007634,0.06518,76660.0,76658.0,0.00195618]
[1731131007933,0.0061,76679.0,76662.0,0.065178]
[1731131008140,0.094,76684.0,76671.0,0.3608]
[1731131008337,0.094,76684.0,76672.0,0.02232176]
[1731131008528,0.47350775,76680.0,76673.0,0.01012176]
[1731131008724,0.25048,76679.0,76672.0,0.0122]
[1731131009832,0.36148,76680.0,76672.0,0.0122]
[1731131010036,0.3608,76680.0,76673.0,0.010075]
[1731131010330,0.3608,76680.0,76674.0,0.04879454]
[1731131010534,0.3608,76680.0,76675.0,0.01011464]
[1731131010734,0.3608,76680.0,76674.0,0.03871954]
[1731131010929,0.3608,76680.0,76675.0,0.01011487]
[1731131011235,0.3608,76680.0,76674.0,0.03871954]
[1731131011430,0.3608,76680.0,76675.0,0.01013098]
[1731131011633,0.3608,76680.0,76674.0,0.03871954]
[1731131011845,0.3608,76680.0,76675.0,0.01013111]
[1731131012040,0.3608,76680.0,76674.0,0.03871954]
[1731131012434,0.11270775,76679.0,76674.0,0.03871954]
[1731131015234,0.11270775,76679.0,76672.0,0.0122]
[1731131016938,0.3608,76680.0,76672.0,0.0122]
[1731131017740,0.61128,76680.0,76672.0,0.0122]
[1731131017942,0.61128,76680.0,76673.0,0.00994325]
[1731131018146,0.61128,76680.0,76674.0,0.00994325]
[1731131018342,0.61128,76680.0,76675.0,0.00982676]
[1731131018547,0.11270775,76679.0,76672.0,0.0122]
[1731131018849,0.11270775,76679.0,76673.0,0.00982718]
[1731131019036,0.11270775,76679.0,76674.0,0.00982718]
[1731131019350,0.11270775,76679.0,76675.0,0.00982718]
[1731131019542,0.11270775,76679.0,76672.0,0.0122]
[1731131019543,0.17787275,76679.0,76676.0,0.00982718]
[1731131019734,0.17787275,76679.0,76672.0,0.0122]
[1731131019935,0.065167,76676.0,76673.0,0.00989233]
[1731131020137,0.065167,76676.0,76674.0,0.00989233]
[1731131020344,0.065167,76676.0,76672.0,0.0122]
[1731131020946,0.36148,76680.0,76672.0,0.0122]
[1731131020947,0.3608,76680.0,76673.0,0.03871954]
[1731131021441,0.11270775,76679.0,76673.0,0.03871954]
[1731131021635,0.425963,76680.0,76672.0,0.05091954]
[1731131021946,0.53867075,76680.0,76677.0,0.03871954]
[1731131022141,0.53867075,76680.0,76678.0,0.00983915]
[1731131022340,0.53867075,76680.0,76679.0,0.00983915]
[1731131022540,0.53867075,76680.0,76679.0,0.00983511]
[1731131023141,0.065165,76679.0,76677.0,0.03880951]
[1731131023348,0.47350775,76680.0,76672.0,0.05100951]
[1731131023349,0.065168,76675.0,76672.0,0.05100951]
[1731131023547,0.3608,76673.0,76672.0,0.05100951]
[1731131023747,0.3608,76673.0,76668.0,0.03880951]
[1731131023748,0.065171,76671.0,76668.0,0.03880951]
[1731131024144,0.033,76670.0,76667.0,0.05100951]
[1731131024448,0.033,76670.0,76667.0,0.03880951]
[1731131024639,0.065173,76668.0,76667.0,0.03880951]
[1731131024846,0.065173,76668.0,76667.0,0.04866851]
[1731131025249,0.033,76670.0,76665.0,0.03880951]
[1731131025250,0.065175,76667.0,76665.0,0.03880951]
[1731131026057,0.065175,76667.0,76666.0,0.04867481]
[1731131026258,0.033,76670.0,76666.0,0.04867481]
[1731131026460,0.098172,76670.0,76668.0,0.03882101]
[1731131026651,0.033,76670.0,76666.0,0.03882101]
[1731131026858,0.065174,76668.0,76666.0,0.03882101]
[1731131027050,0.065174,76668.0,76663.0,0.0122]
[1731131027051,0.065174,76668.0,76667.0,0.03882101]
[1731131027550,0.065174,76668.0,76666.0,0.03882101]
[1731131027954,0.065174,76668.0,76663.0,0.06382606]
[1731131028259,0.25048,76671.0,76665.0,0.05162606]
[1731131028553,0.25048,76671.0,76666.0,0.00981823]
[1731131028750,0.25048,76671.0,76667.0,0.00981823]
[1731131028957,0.25048,76671.0,76665.0,0.05162606]
[1731131028958,0.25048,76671.0,76670.0,0.03881849]
[1731131029255,0.25048,76671.0,76668.0,0.03881849]
[1731131029458,0.315651,76671.0,76668.0,0.03881849]
[1731131029650,0.36318775,76671.0,76666.0,0.03881849]
[1731131029848,0.065174,76668.0,76666.0,0.03881849]
[1731131030255,0.065177,76664.0,76663.0,0.0122]
[1731131030553,0.065177,76664.0,76658.0,0.05297467]
[1731131030554,0.065179,76662.0,76658.0,0.05297467]
[1731131030745,0.065179,76662.0,76658.0,0.01415618]
[1731131033657,0.065181,76660.0,76658.0,0.01415618]
[1731131033865,0.065181,76660.0,76658.0,0.00195618]
[1731131035158,0.0302,76663.0,76658.0,0.00195618]
[1731131037062,0.3608,76664.0,76658.0,0.00195618]
[1731131037250,0.3608,76664.0,76658.0,0.04109103]
[1731131037447,0.47350775,76664.0,76658.0,0.04109103]
[1731131041065,0.06518,76661.0,76658.0,0.04109103]
[1731131041252,0.065178,76663.0,76658.0,0.04109103]